[Event "EOC-ch Playoff-A 2021"]
[Site "Online"]
[Date "2021.03.29"]
[Round "2.8"]
[White "Wieczorek, Oskar"]
[Black "Huzman, Alexander"]
[Result "1/2-1/2"]
[ECO "C07"]
[WhiteElo "2498"]
[BlackElo "2561"]
[Annotator "ChessBase"]
[PlyCount "105"]
[EventDate "2021.03.29"]
[EventType "team-tourn"]
[EventCountry "NET"]
[SourceTitle "playchess.com"]
[Source "ChessBase"]
[SourceQuality "1"]
[TimeControl "900+5"]

1. e4 {[%emt 0:00:00]} e6 {[%emt 0:00:08]} 2. d4 {[%emt 0:00:03]} d5 {[%emt 0:00:02]} 3. Nd2 {[%emt 0:00:01]} c5 {[%emt 0:00:02]} 4. exd5 {[%emt 0:00:03]} Qxd5 {[%emt 0:00:06]} 5. dxc5 {[%emt 0:00:02]} Qxc5 {[%emt 0:00:05]} 6. Ngf3 {[%emt 0:00:03]} Nf6 {[%emt 0:00:03]} 7. Bd3 {[%emt 0:00:11]} Nbd7 {[%emt 0:00:04]} 8. O-O {[%emt 0:00:33]} Qc7 {[%emt 0:00:03]} 9. Nb3 {[%emt 0:00:36]} Be7 {[%emt 0:00:07]} 10. Qe2 {[%emt 0:00:11]} O-O {[%emt 0:00:03]} 11. Bg5 {[%emt 0:00:06]} b6 {[%emt 0:00:26]} 12. Rfe1 {[%emt 0:00:28]} Bb7 {[%emt 0:00:21]} 13. Rad1 {[%emt 0:00:16]} a6 {[%emt 0:01:17]} 14. Bh4 {[%emt 0:01:30]} Bd6 {[%emt 0:01:09]} 15. Bg3 {[%emt 0:00:33]} Bxg3 {[%emt 0:00:08]} 16. hxg3 {[%emt 0:00:00]} Rfe8 {[%emt 0:00:31]} 17. Ne5 {[%emt 0:01:22]} Nxe5 {[%emt 0:00:42]} 18. Qxe5 {[%emt 0:00:00]} Qxe5 {[%emt 0:00:02]} 19. Rxe5 {[%emt 0:00:01]} Red8 {[%emt 0:00:05]} 20. Ree1 {[%emt 0:00:09]} Kf8 {[%emt 0:00:58]} 21. f3 {[%emt 0:00:28]} h5 {[%emt 0:00:25]} 22. c3 {[%emt 0:00:30]} Bd5 {[%emt 0:00:28]} 23. Nd4 {[%emt 0:00:59]} b5 {[%emt 0:00:35]} 24. a3 {[%emt 0:00:18]} Nd7 {[%emt 0:00:33]} 25. Kf2 {[%emt 0:00:46]} Nb6 {[%emt 0:00:09]} 26. Rd2 {[%emt 0:00:57]} Rac8 {[%emt 0:00:16]} 27. Red1 {[%emt 0:01:23]} Ke7 {[%emt 0:00:17]} 28. Re1 {[%emt 0:00:07]} g6 {[%emt 0:00:15]} 29. f4 {[%emt 0:00:31]} Kf6 {[%emt 0:00:22]} 30. Be2 {[%emt 0:00:25]} Bc4 {[%emt 0:01:46]} 31. Bf3 {[%emt 0:00:16]} Bd5 {[%emt 0:00:02]} 32. Be2 {[%emt 0:00:04]} Na4 {[%emt 0:00:43]} 33. Bd1 {[%emt 0:00:30]} Nc5 {[%emt 0:00:27]} 34. Bc2 {[%emt 0:00:01]} Nb7 {[%emt 0:00:40]} 35. Bd3 {[%emt 0:00:23]} Nd6 {[%emt 0:00:07]} 36. Ree2 {[%emt 0:00:15]} Bb7 {[%emt 0:00:07]} 37. Re1 {[%emt 0:00:12]} Rc5 {[%emt 0:00:09]} 38. Red1 {[%emt 0:00:16]} g5 {[%emt 0:00:20]} 39. Nf3 {[%emt 0:01:34]} gxf4 {[%emt 0:00:47]} 40. gxf4 {[%emt 0:00:00]} Bxf3 {[%emt 0:00:59]} 41. Kxf3 {[%emt 0:00:00]} Rd5 {[%emt 0:00:01]} 42. Be2 {[%emt 0:00:52]} Nc4 {[%emt 0:00:45]} 43. Rxd5 {[%emt 0:00:07]} Rxd5 {[%emt 0:00:03]} 44. Rxd5 {[%emt 0:00:58]} exd5 {[%emt 0:00:02]} 45. Bxc4 {[%emt 0:00:28]} bxc4 {[%emt 0:00:03]} 46. g4 {[%emt 0:00:08]} Kg6 {[%emt 0:00:17]} 47. Kg3 {[%emt 0:00:10]} hxg4 {[%emt 0:00:13]} 48. Kxg4 {[%emt 0:00:00]} f5+ {[%emt 0:00:02]} 49. Kh4 {[%emt 0:00:07]} Kh6 {[%emt 0:00:02]} 50. Kg3 {[%emt 0:00:01]} Kg6 {[%emt 0:00:02]} 51. Kh4 {[%emt 0:00:02]} Kh6 {[%emt 0:00:02]} 52. Kg3 {[%emt 0:00:01]} Kg6 {[%emt 0:00:02]} 53. Kh4 {[%emt 0:00:02]} 1/2-1/2

[Event "EOC-ch Playoff-A 2021"]
[Site "Online"]
[Date "2021.03.29"]
[Round "2.10"]
[White "Amin, Bassem"]
[Black "Kamsky, Gata"]
[Result "0-1"]
[ECO "B06"]
[WhiteElo "2695"]
[BlackElo "2665"]
[Annotator "RC"]
[PlyCount "150"]
[EventDate "2021.03.29"]
[EventType "team-tourn"]
[EventCountry "NET"]
[SourceTitle "playchess.com"]
[Source "ChessBase"]
[SourceQuality "1"]
[TimeControl "900+5"]

1. e4 {[%emt 0:00:00]} g6 {[%emt 0:00:03]} 2. d4 {[%emt 0:00:30]} Bg7 {[%emt 0:00:02]} 3. Nf3 {[%emt 0:00:37]} c6 {[%emt 0:00:10]} 4. h3 {[%emt 0:00:41]} d5 {[%emt 0:00:12]} 5. e5 {[%emt 0:00:10]} f6 {[%emt 0:01:06]} 6. exf6 {[%emt 0:00:45]} exf6 {[%emt 0:00:05]} 7. Bd3 {[%emt 0:00:02]} Ne7 {[%emt 0:00:17]} 8. O-O {[%emt 0:00:08]} O-O {[%emt 0:00:07]} 9. Re1 {[%emt 0:00:09]} Bf5 {[%emt 0:01:31]} 10. Bf4 {[%emt 0:00:46]} Rf7 {[%emt 0:00:25]} 11. Nc3 {[%emt 0:01:17]} Bxd3 {[%emt 0:00:54]} 12. Qxd3 {[%emt 0:00:00]} Nd7 {[%emt 0:00:22]} 13. Re2 {[%emt 0:00:32]} Nf8 {[%emt 0:00:32]} 14. Rae1 {[%emt 0:00:06]} Nf5 {[%emt 0:01:56]} 15. Na4 {[%emt 0:02:21]} b6 {[%emt 0:00:15]} 16. c4 {[%emt 0:00:44]} Bh6 {[%emt 0:03:25]} 17. Bxh6 {[%emt 0:00:18]} Nxh6 {[%emt 0:00:03]} 18. Nc3 {[%emt 0:00:33]} Qd7 {[%emt 0:00:53]} 19. cxd5 {[%emt 0:00:19]} cxd5 {[%emt 0:00:04]} 20. Qb5 {[%emt 0:00:46]} Qxb5 {[%emt 0:00:35]} 21. Nxb5 {[%emt 0:00:00]} Rd7 {[%emt 0:00:12]} 22. Re8 {[%emt 0:00:23]} Rxe8 {[%emt 0:00:12]} 23. Rxe8 {[%emt 0:00:00]} a6 {[%emt 0:00:27]} 24. Nc3 {[%emt 0:00:04]} b5 {[%emt 0:00:34]} 25. Rc8 {[%emt 0:00:11]} Rd6 {[%emt 0:00:17]} 26. Rc5 {[%emt 0:00:06]} Kf7 {[%emt 0:00:53]} 27. Rxd5 {[%emt 0:00:17]} Nf5 {[%emt 0:00:10]} 28. Rxd6 {[%emt 0:01:44]} Nxd6 {[%emt 0:00:03]} 29. Kf1 {[%emt 0:00:02]} Ne6 {[%emt 0:00:06]} 30. g3 {[%emt 0:00:06]} Nc7 {[%emt 0:00:16]} 31. Ke2 {[%emt 0:00:27]} a5 {[%emt 0:00:05]} 32. Kd3 {[%emt 0:00:08]} Ke6 {[%emt 0:00:04]} 33. d5+ {[%emt 0:00:18]} Kd7 {[%emt 0:00:10]} 34. Kd4 {[%emt 0:00:20]} Na6 {[%emt 0:00:18]} 35. Nd2 {[%emt 0:00:26]} Nf5+ {[%emt 0:00:05]} 36. Ke4 {[%emt 0:01:39]} Nc5+ {[%emt 0:00:05]} 37. Kf3 {[%emt 0:00:28]} Nd4+ {[%emt 0:00:08]} 38. Ke3 {[%emt 0:00:04]} Nf5+ {[%emt 0:00:02]} 39. Ke2 {[%emt 0:00:17]} Nd4+ {[%emt 0:00:02]} 40. Kf1 {[%emt 0:00:07]} f5 {[%emt 0:00:20]} 41. b3 {[%emt 0:00:13]} Kd6 {[%emt 0:00:33]} 42. a4 {[%emt 0:00:04]} Ndxb3 {[%emt 0:00:21]} 43. Nxb3 {[%emt 0:00:04]} Nxb3 {[%emt 0:00:01]} 44. axb5 {[%emt 0:00:01]} Kc5 {[%emt 0:00:02]} 45. Ke2 {[%emt 0:00:24]} Nd4+ {[%emt 0:00:02]} 46. Ke3 {[%emt 0:00:07]} Nxb5 {[%emt 0:00:02]} 47. Na4+ {[%emt 0:00:01]} Kxd5 {[%emt 0:00:03]} 48. Kf4 {[%emt 0:00:04]} Ke6 {[%emt 0:00:05]} 49. Kg5 {[%emt 0:00:02]} Kf7 {[%emt 0:00:02]} 50. Kh6 {[%emt 0:00:08]} Kg8 {[%emt 0:00:01]} 51. g4 {[%emt 0:00:02]} Nd6 {[%emt 0:00:04]} 52. Kg5 {[%emt 0:00:04]} Kg7 {[%emt 0:00:04]} 53. f3 {[%emt 0:00:06]} h6+ {[%emt 0:00:02]} 54. Kf4 {[%emt 0:00:01]} Kf6 {[%emt 0:00:01]} 55. Nb6 {[%emt 0:00:04]} g5+ {[%emt 0:00:05]} 56. Ke3 {[%emt 0:00:01]} Ke5 {[%emt 0:00:03]} 57. Nd7+ {[%emt 0:00:09]} Kd5 {[%emt 0:00:06]} 58. Nb6+ {[%emt 0:00:01]} Kc6 {[%emt 0:00:03]} 59. Na4 {[%emt 0:00:03]} Kb5 {[%emt 0:00:02]} 60. Nc3+ {[%emt 0:00:03]} Kc4 {[%emt 0:00:03]} 61. Na4 {[%emt 0:00:04]} f4+ {[%emt 0:00:01]} 62. Kd2 {[%emt 0:00:04]} Kd4 {[%emt 0:00:04]} 63. Ke2 {[%emt 0:00:05]} Nc4 {[%emt 0:00:02]} 64. Kf2 {[%emt 0:00:08]} Ne5 {[%emt 0:00:06]} 65. Ke2 {[%emt 0:00:11]} Nd3 {[%emt 0:00:03]} 66. Kd2 {[%emt 0:00:04]} Nc5 {[%emt 0:00:03]} 67. Nc3 {[%emt 0:00:10]} Kc4 {[%emt 0:00:06]} 68. Kc2 {[%emt 0:00:04]} Ne6 {[%emt 0:00:06]} 69. Ne4 {[%emt 0:00:10]} Nd4+ {[%emt 0:00:02]} 70. Kd1 {[%emt 0:00:04]} Nxf3 {[%emt 0:00:05]} 71. Nd6+ {[%emt 0:00:01]} Kd3 {[%emt 0:00:04]} 72. Nf7 {[%emt 0:00:02]} a4 {[%emt 0:00:01]} 73. Nxh6 {[%emt 0:00:05]} a3 {[%emt 0:00:03]} 74. Kc1 {[%emt 0:00:01]} Nd4 {[%emt 0:00:05]} 75. Nf7 {[%emt 0:00:07]} f3 {[%emt 0:00:04]} 0-1

[Event "EOC-ch Playoff-A 2021"]
[Site "Online"]
[Date "2021.03.29"]
[Round "2.11"]
[White "Timofeev, Artyom"]
[Black "Van Wely, Loek"]
[Result "1/2-1/2"]
[ECO "D83"]
[WhiteElo "2594"]
[BlackElo "2620"]
[Annotator "RC"]
[PlyCount "111"]
[EventDate "2021.03.29"]
[EventType "team-tourn"]
[EventCountry "NET"]
[SourceTitle "playchess.com"]
[Source "ChessBase"]
[SourceQuality "1"]
[TimeControl "900+5"]

1. d4 {[%emt 0:00:00]} Nf6 {[%emt 0:00:09]} 2. c4 {[%emt 0:00:04]} g6 {[%emt 0:00:02]} 3. Nc3 {[%emt 0:00:08]} d5 {[%emt 0:00:02]} 4. Bf4 {[%emt 0:00:05]} Bg7 {[%emt 0:00:02]} 5. e3 {[%emt 0:00:03]} O-O {[%emt 0:00:06]} 6. Rc1 {[%emt 0:00:04]} Be6 {[%emt 0:00:07]} 7. cxd5 {[%emt 0:01:19]} Nxd5 {[%emt 0:00:06]} 8. Nxd5 {[%emt 0:00:02]} Qxd5 {[%emt 0:00:03]} 9. b3 {[%emt 0:00:06]} c6 {[%emt 0:01:44]} 10. Nf3 {[%emt 0:00:11]} Nd7 {[%emt 0:01:21]} 11. Bc4 {[%emt 0:00:22]} Qf5 {[%emt 0:00:25]} 12. Bd3 {[%emt 0:00:35]} Qh5 {[%emt 0:02:09]} 13. Ng5 {[%emt 0:01:38]} Qxd1+ {[%emt 0:01:06]} 14. Kxd1 {[%emt 0:01:25]} Bf5 {[%emt 0:00:11]} 15. Bxf5 {[%emt 0:00:16]} gxf5 {[%emt 0:00:02]} 16. Nf3 {[%emt 0:00:02]} Nf6 {[%emt 0:00:09]} 17. Ke2 {[%emt 0:00:24]} Nd5 {[%emt 0:00:28]} 18. Bg3 {[%emt 0:01:18]} Rad8 {[%emt 0:00:22]} 19. Bh4 {[%emt 0:00:25]} Rd6 {[%emt 0:01:13]} 20. h3 {[%emt 0:00:22]} Re6 {[%emt 0:01:07]} 21. Ng5 {[%emt 0:00:07]} Rg6 {[%emt 0:00:08]} 22. Rhg1 {[%emt 0:00:17]} Re8 {[%emt 0:00:40]} 23. Nf3 {[%emt 0:00:47]} e5 {[%emt 0:00:17]} 24. dxe5 {[%emt 0:00:24]} Bxe5 {[%emt 0:00:02]} 25. Nxe5 {[%emt 0:00:04]} Rxe5 {[%emt 0:00:02]} 26. Kf3 {[%emt 0:00:03]} f6 {[%emt 0:00:59]} 27. Rc4 {[%emt 0:00:22]} Kf7 {[%emt 0:00:05]} 28. Bg3 {[%emt 0:00:34]} Re7 {[%emt 0:00:10]} 29. a4 {[%emt 0:00:04]} Ke6 {[%emt 0:00:21]} 30. Rd1 {[%emt 0:00:10]} a6 {[%emt 0:00:19]} 31. Rh4 {[%emt 0:00:20]} Kd7 {[%emt 0:00:09]} 32. b4 {[%emt 0:00:36]} b5 {[%emt 0:00:14]} 33. axb5 {[%emt 0:00:05]} axb5 {[%emt 0:00:00]} 34. Ra1 {[%emt 0:00:04]} Rgg7 {[%emt 0:00:11]} 35. Ra6 {[%emt 0:00:18]} Rgf7 {[%emt 0:00:18]} 36. Rd4 {[%emt 0:00:43]} Re6 {[%emt 0:00:06]} 37. Bh2 {[%emt 0:01:07]} Rfe7 {[%emt 0:00:24]} 38. g4 {[%emt 0:00:21]} Re4 {[%emt 0:00:06]} 39. Ra7+ {[%emt 0:00:14]} Ke8 {[%emt 0:00:11]} 40. Rxe7+ {[%emt 0:00:07]} Kxe7 {[%emt 0:00:02]} 41. Rxe4+ {[%emt 0:00:05]} fxe4+ {[%emt 0:00:02]} 42. Kxe4 {[%emt 0:00:02]} Nxb4 {[%emt 0:00:01]} 43. Kd4 {[%emt 0:00:02]} c5+ {[%emt 0:00:28]} 44. Kxc5 {[%emt 0:00:12]} Nd3+ {[%emt 0:00:02]} 45. Kxb5 {[%emt 0:00:05]} Nxf2 {[%emt 0:00:01]} 46. Kc4 {[%emt 0:00:10]} Nxh3 {[%emt 0:00:03]} 47. Bg3 {[%emt 0:00:02]} Kf7 {[%emt 0:00:27]} 48. Kd3 {[%emt 0:00:23]} Kg6 {[%emt 0:00:02]} 49. Bh4 {[%emt 0:00:03]} f5 {[%emt 0:00:27]} 50. gxf5+ {[%emt 0:00:03]} Kxf5 {[%emt 0:00:02]} 51. e4+ {[%emt 0:00:11]} Kg4 {[%emt 0:00:12]} 52. Be7 {[%emt 0:00:15]} Nf2+ {[%emt 0:00:10]} 53. Ke3 {[%emt 0:00:03]} Nxe4 {[%emt 0:00:01]} 54. Kxe4 {[%emt 0:00:02]} h5 {[%emt 0:00:02]} 55. Bd8 {[%emt 0:00:01]} h4 {[%emt 0:00:01]} 56. Bxh4 {[%emt 0:00:02]} 1/2-1/2

[Event "EOC-ch Playoff-A 2021"]
[Site "Online"]
[Date "2021.03.29"]
[Round "2.12"]
[White "Hamdouchi, Hicham"]
[Black "Sharafiev, Azat"]
[Result "1/2-1/2"]
[ECO "B30"]
[WhiteElo "2561"]
[BlackElo "2432"]
[Annotator "ChessBase"]
[PlyCount "37"]
[EventDate "2021.03.29"]
[EventType "team-tourn"]
[EventCountry "NET"]
[SourceTitle "playchess.com"]
[Source "ChessBase"]
[SourceQuality "1"]
[TimeControl "900+5"]

1. e4 {[%emt 0:00:00]} c5 {[%emt 0:00:03]} 2. Nc3 {[%emt 0:00:04]} Nc6 {[%emt 0:00:04]} 3. Bb5 {[%emt 0:00:02]} Nd4 {[%emt 0:00:03]} 4. Bc4 {[%emt 0:00:07]} e6 {[%emt 0:00:03]} 5. Nf3 {[%emt 0:00:03]} Nf6 {[%emt 0:00:01]} 6. O-O {[%emt 0:00:23]} a6 {[%emt 0:00:10]} 7. d3 {[%emt 0:01:32]} b5 {[%emt 0:00:18]} 8. Bb3 {[%emt 0:00:02]} Nxb3 {[%emt 0:00:02]} 9. axb3 {[%emt 0:00:02]} Bb7 {[%emt 0:00:01]} 10. e5 {[%emt 0:01:17]} Nd5 {[%emt 0:00:01]} 11. Ne4 {[%emt 0:00:01]} Be7 {[%emt 0:00:06]} 12. c4 {[%emt 0:00:44]} Nb4 {[%emt 0:00:01]} 13. Be3 {[%emt 0:01:01]} Qc7 {[%emt 0:03:42]} 14. cxb5 {[%emt 0:02:32]} axb5 {[%emt 0:00:03]} 15. Rc1 {[%emt 0:00:02]} Na2 {[%emt 0:05:27]} 16. Rc2 {[%emt 0:00:56]} Nb4 {[%emt 0:00:35]} 17. Rc1 {[%emt 0:00:07]} Na2 {[%emt 0:00:02]} 18. Rc2 {[%emt 0:00:15]} Nb4 {[%emt 0:00:02]} 19. Rc1 {[%emt 0:01:09]} 1/2-1/2

[Event "EOC-ch Playoff-A 2021"]
[Site "Online"]
[Date "2021.03.29"]
[Round "3.5"]
[White "Bartel, Mateusz"]
[Black "Artemiev, Vladislav"]
[Result "0-1"]
[ECO "C77"]
[WhiteElo "2635"]
[BlackElo "2709"]
[Annotator "RC"]
[PlyCount "54"]
[EventDate "2021.03.29"]
[EventType "team-tourn"]
[EventCountry "NET"]
[SourceTitle "playchess.com"]
[Source "ChessBase"]
[SourceQuality "1"]
[TimeControl "900+5"]

1. e4 {[%emt 0:00:00]} e5 {[%emt 0:00:06]} 2. Nf3 {[%emt 0:00:06]} Nc6 {[%emt 0:00:02]} 3. Bb5 {[%emt 0:00:02]} a6 {[%emt 0:00:05]} 4. Ba4 {[%emt 0:00:03]} Nf6 {[%emt 0:00:04]} 5. Nc3 {[%emt 0:00:03]} Bc5 {[%emt 0:02:08]} 6. Bxc6 {[%emt 0:01:40]} dxc6 {[%emt 0:00:03]} 7. d3 {[%emt 0:00:00]} Qe7 {[%emt 0:01:39]} 8. h3 {[%emt 0:00:28]} h6 {[%emt 0:01:01]} 9. Be3 {[%emt 0:01:29]} Bd6 {[%emt 0:00:20]} 10. O-O {[%emt 0:01:48]} c5 {[%emt 0:00:20]} 11. Nd2 {[%emt 0:00:14]} g5 {[%emt 0:00:30]} 12. Nc4 {[%emt 0:00:57]} Be6 {[%emt 0:00:02]} 13. Nxd6+ {[%emt 0:00:58]} cxd6 {[%emt 0:00:13]} 14. Ne2 {[%emt 0:00:52]} g4 {[%emt 0:00:46]} 15. h4 {[%emt 0:00:10]} Nh5 {[%emt 0:01:30]} 16. g3 {[%emt 0:00:04]} f5 {[%emt 0:02:23]} 17. exf5 {[%emt 0:00:07]} Bd5 {[%emt 0:00:00]} 18. Nc3 {[%emt 0:01:15]} Bf3 {[%emt 0:00:04]} 19. Qd2 {[%emt 0:00:02]} Ng7 {[%emt 0:00:42]} 20. Bxh6 {[%emt 0:00:32]} Nxf5 {[%emt 0:00:06]} 21. Bg5 {[%emt 0:00:02]} Nxh4 {[%emt 0:00:51]} 22. Bxe7 {[%emt 0:02:52]} Nf5 {[%emt 0:00:02]} 23. Bh4 {[%emt 0:00:02]} Nxh4 {[%emt 0:00:01]} 24. Qg5 {[%emt 0:01:16]} Nf5 {[%emt 0:00:05]} 25. Qg6+ {[%emt 0:00:01]} Kd8 {[%emt 0:00:11]} 26. Qf6+ {[%emt 0:00:27]} Kc7 {[%emt 0:00:02]} 27. Nd5+ {[%emt 0:00:22]} Kc6 {[%emt 0:00:22]} 0-1

[Event "EOC-ch Playoff-A 2021"]
[Site "Online"]
[Date "2021.03.29"]
[Round "3.7"]
[White "Mastrovasilis, Dimitrios"]
[Black "Timofeev, Artyom"]
[Result "1/2-1/2"]
[ECO "B52"]
[WhiteElo "2609"]
[BlackElo "2594"]
[Annotator "RC"]
[PlyCount "135"]
[EventDate "2021.03.29"]
[EventType "team-tourn"]
[EventCountry "NET"]
[SourceTitle "playchess.com"]
[Source "ChessBase"]
[SourceQuality "1"]
[TimeControl "900+5"]

1. e4 {[%emt 0:00:00]} c5 {[%emt 0:00:05]} 2. Nf3 {[%emt 0:00:04]} d6 {[%emt 0:00:03]} 3. Bb5+ {[%emt 0:00:03]} Bd7 {[%emt 0:00:03]} 4. Bxd7+ {[%emt 0:00:03]} Nxd7 {[%emt 0:00:03]} 5. O-O {[%emt 0:00:04]} Ngf6 {[%emt 0:00:03]} 6. Qe2 {[%emt 0:00:03]} Rc8 {[%emt 0:00:13]} 7. c3 {[%emt 0:00:19]} e6 {[%emt 0:00:24]} 8. d4 {[%emt 0:00:38]} cxd4 {[%emt 0:01:59]} 9. cxd4 {[%emt 0:00:00]} Be7 {[%emt 0:00:02]} 10. Nc3 {[%emt 0:00:08]} Nb6 {[%emt 0:00:14]} 11. Bg5 {[%emt 0:01:51]} O-O {[%emt 0:00:12]} 12. Rac1 {[%emt 0:01:02]} h6 {[%emt 0:00:19]} 13. Bh4 {[%emt 0:00:04]} a6 {[%emt 0:00:16]} 14. Rc2 {[%emt 0:01:48]} d5 {[%emt 0:00:17]} 15. e5 {[%emt 0:00:07]} Nfd7 {[%emt 0:00:04]} 16. Bxe7 {[%emt 0:00:09]} Qxe7 {[%emt 0:00:04]} 17. Rfc1 {[%emt 0:00:02]} Rc6 {[%emt 0:00:04]} 18. Nd1 {[%emt 0:01:07]} Rxc2 {[%emt 0:00:06]} 19. Rxc2 {[%emt 0:00:02]} Rc8 {[%emt 0:00:02]} 20. Rxc8+ {[%emt 0:00:41]} Nxc8 {[%emt 0:00:04]} 21. Qc2 {[%emt 0:00:03]} Qd8 {[%emt 0:00:11]} 22. Ne3 {[%emt 0:00:38]} Ne7 {[%emt 0:00:06]} 23. Qc3 {[%emt 0:00:07]} Nc6 {[%emt 0:00:42]} 24. g3 {[%emt 0:00:10]} Qa5 {[%emt 0:00:10]} 25. Qxa5 {[%emt 0:00:20]} Nxa5 {[%emt 0:00:03]} 26. Kf1 {[%emt 0:00:06]} Nc4 {[%emt 0:00:24]} 27. Nd1 {[%emt 0:00:44]} f6 {[%emt 0:00:07]} 28. b3 {[%emt 0:00:16]} Na3 {[%emt 0:00:06]} 29. exf6 {[%emt 0:00:48]} gxf6 {[%emt 0:00:05]} 30. Ke2 {[%emt 0:00:35]} Kf7 {[%emt 0:00:09]} 31. Nc3 {[%emt 0:00:10]} Nc2 {[%emt 0:00:07]} 32. Kd2 {[%emt 0:00:32]} Nb4 {[%emt 0:00:06]} 33. Ne1 {[%emt 0:00:34]} Ke7 {[%emt 0:01:05]} 34. Ng2 {[%emt 0:00:43]} Kd6 {[%emt 0:00:17]} 35. Ne3 {[%emt 0:00:07]} Nc6 {[%emt 0:00:03]} 36. Kd3 {[%emt 0:00:07]} Nb4+ {[%emt 0:00:04]} 37. Kd2 {[%emt 0:00:01]} Nc6 {[%emt 0:00:02]} 38. Ne2 {[%emt 0:00:10]} Ne7 {[%emt 0:00:19]} 39. h4 {[%emt 0:00:46]} e5 {[%emt 0:00:26]} 40. h5 {[%emt 0:00:19]} f5 {[%emt 0:02:10]} 41. dxe5+ {[%emt 0:00:14]} Kxe5 {[%emt 0:00:03]} 42. f3 {[%emt 0:01:46]} b5 {[%emt 0:00:29]} 43. Nf4 {[%emt 0:00:07]} d4 {[%emt 0:00:08]} 44. Nd3+ {[%emt 0:00:18]} Kf6 {[%emt 0:01:01]} 45. Nc2 {[%emt 0:00:05]} Nc6 {[%emt 0:00:13]} 46. Ndb4 {[%emt 0:00:07]} Nxb4 {[%emt 0:00:07]} 47. Nxb4 {[%emt 0:00:00]} Nc5 {[%emt 0:00:01]} 48. Nc6 {[%emt 0:00:18]} d3 {[%emt 0:02:28]} 49. b4 {[%emt 0:00:03]} Ne6 {[%emt 0:00:32]} 50. Kxd3 {[%emt 0:00:04]} Ng7 {[%emt 0:00:04]} 51. g4 {[%emt 0:00:14]} fxg4 {[%emt 0:00:03]} 52. fxg4 {[%emt 0:00:00]} Kg5 {[%emt 0:00:01]} 53. Ne5 {[%emt 0:00:06]} Ne8 {[%emt 0:00:15]} 54. Kd4 {[%emt 0:00:13]} Kf4 {[%emt 0:00:51]} 55. Nf7 {[%emt 0:00:15]} Kxg4 {[%emt 0:00:02]} 56. Nxh6+ {[%emt 0:00:02]} Kxh5 {[%emt 0:00:01]} 57. Nf7 {[%emt 0:00:14]} Kg6 {[%emt 0:00:06]} 58. Nd8 {[%emt 0:00:06]} Kf6 {[%emt 0:00:18]} 59. Kc5 {[%emt 0:00:01]} Ke7 {[%emt 0:00:02]} 60. Nc6+ {[%emt 0:00:05]} Ke6 {[%emt 0:00:20]} 61. Kb6 {[%emt 0:00:07]} Kd5 {[%emt 0:00:06]} 62. Nb8 {[%emt 0:00:04]} Kc4 {[%emt 0:00:07]} 63. Nxa6 {[%emt 0:00:03]} Nf6 {[%emt 0:00:15]} 64. Ka5 {[%emt 0:00:05]} Nd5 {[%emt 0:00:14]} 65. a3 {[%emt 0:00:07]} Kb3 {[%emt 0:00:05]} 66. Kxb5 {[%emt 0:00:03]} Kxa3 {[%emt 0:00:02]} 67. Kc5 {[%emt 0:00:04]} Nxb4 {[%emt 0:00:02]} 68. Nxb4 {[%emt 0:00:02]} 1/2-1/2

[Event "EOC-ch Playoff-A 2021"]
[Site "Online"]
[Date "2021.03.29"]
[Round "3.8"]
[White "Sharafiev, Azat"]
[Black "Wieczorek, Oskar"]
[Result "1-0"]
[ECO "D03"]
[WhiteElo "2432"]
[BlackElo "2498"]
[Annotator "ChessBase"]
[PlyCount "99"]
[EventDate "2021.03.29"]
[EventType "team-tourn"]
[EventCountry "NET"]
[SourceTitle "playchess.com"]
[Source "ChessBase"]
[SourceQuality "1"]
[TimeControl "900+5"]

1. d4 {[%emt 0:00:00]} Nf6 {[%emt 0:00:02]} 2. Nf3 {[%emt 0:00:02]} g6 {[%emt 0:00:02]} 3. Bg5 {[%emt 0:00:02]} Bg7 {[%emt 0:00:01]} 4. Nbd2 {[%emt 0:00:01]} d5 {[%emt 0:00:01]} 5. e3 {[%emt 0:00:03]} O-O {[%emt 0:00:02]} 6. Bd3 {[%emt 0:00:01]} c5 {[%emt 0:00:02]} 7. c3 {[%emt 0:00:05]} Qb6 {[%emt 0:00:02]} 8. Qb1 {[%emt 0:01:13]} Nc6 {[%emt 0:00:14]} 9. O-O {[%emt 0:00:03]} e5 {[%emt 0:02:19]} 10. Nxe5 {[%emt 0:05:06]} Nxe5 {[%emt 0:00:04]} 11. dxe5 {[%emt 0:00:01]} Ng4 {[%emt 0:00:02]} 12. Nf3 {[%emt 0:00:41]} Nxe5 {[%emt 0:00:07]} 13. Nxe5 {[%emt 0:00:03]} Bxe5 {[%emt 0:00:00]} 14. Qc2 {[%emt 0:00:25]} Bg7 {[%emt 0:00:09]} 15. Rad1 {[%emt 0:00:09]} Be6 {[%emt 0:00:11]} 16. Rd2 {[%emt 0:00:59]} Qc6 {[%emt 0:02:54]} 17. Be2 {[%emt 0:00:25]} d4 {[%emt 0:02:37]} 18. cxd4 {[%emt 0:01:37]} cxd4 {[%emt 0:00:04]} 19. Qxc6 {[%emt 0:00:02]} bxc6 {[%emt 0:00:00]} 20. b3 {[%emt 0:00:37]} h6 {[%emt 0:02:33]} 21. Bf4 {[%emt 0:00:31]} g5 {[%emt 0:00:12]} 22. Bd6 {[%emt 0:00:40]} dxe3 {[%emt 0:00:08]} 23. fxe3 {[%emt 0:00:02]} Rfd8 {[%emt 0:00:02]} 24. Bf3 {[%emt 0:00:42]} Rac8 {[%emt 0:01:43]} 25. Rfd1 {[%emt 0:00:14]} a5 {[%emt 0:00:32]} 26. Bc5 {[%emt 0:00:11]} Rxd2 {[%emt 0:00:34]} 27. Rxd2 {[%emt 0:00:02]} Bf8 {[%emt 0:00:20]} 28. Rc2 {[%emt 0:00:44]} Bf5 {[%emt 0:00:47]} 29. Rc1 {[%emt 0:00:12]} g4 {[%emt 0:00:49]} 30. Be2 {[%emt 0:00:05]} Be6 {[%emt 0:00:21]} 31. Bxf8 {[%emt 0:00:21]} Kxf8 {[%emt 0:00:00]} 32. Rc5 {[%emt 0:00:07]} Rd8 {[%emt 0:00:28]} 33. Rxa5 {[%emt 0:00:12]} Rd2 {[%emt 0:00:02]} 34. Kf1 {[%emt 0:00:50]} Ke7 {[%emt 0:00:05]} 35. Ke1 {[%emt 0:00:31]} Rb2 {[%emt 0:00:04]} 36. e4 {[%emt 0:00:04]} Kd6 {[%emt 0:00:15]} 37. g3 {[%emt 0:00:31]} c5 {[%emt 0:00:05]} 38. Kf1 {[%emt 0:00:17]} Ke5 {[%emt 0:00:06]} 39. Rxc5+ {[%emt 0:00:07]} Kxe4 {[%emt 0:00:01]} 40. a4 {[%emt 0:00:14]} Rxb3 {[%emt 0:00:07]} 41. a5 {[%emt 0:00:05]} Ra3 {[%emt 0:00:04]} 42. a6 {[%emt 0:00:01]} Ke3 {[%emt 0:00:07]} 43. Re5+ {[%emt 0:00:03]} Kd4 {[%emt 0:00:01]} 44. Rb5 {[%emt 0:00:05]} Ra1+ {[%emt 0:00:08]} 45. Kf2 {[%emt 0:00:02]} Ra2 {[%emt 0:00:02]} 46. Rb4+ {[%emt 0:00:07]} Kc5 {[%emt 0:00:08]} 47. Rf4 {[%emt 0:00:03]} f5 {[%emt 0:00:06]} 48. Ke3 {[%emt 0:00:03]} Ra3+ {[%emt 0:00:02]} 49. Bd3 {[%emt 0:00:04]} Bc8 {[%emt 0:00:06]} 50. Rc4+ {[%emt 0:00:08]} 1-0